[Event "*** SCC Grand Prix: Titled Tuesday Blitz"]
[Site "Chess.com"]
[Date "2020.08.11"]
[Round "3"]
[White "Fandorine"]
[Black "Angel_Hranitel_37"]
[Result "1-0"]
[WhiteElo "2891"]
[BlackElo "2451"]
[TimeControl "180+1"]
[EndTime "10:29:09 PDT"]
[Termination "Fandorine won by resignation"]

1. e4 {[%clk 0:03:00.9]} 1... c5 {[%clk 0:03:00]} 2. b3 {[%clk 0:03:00.9]} 2...
e6 {[%clk 0:02:56.9]} 3. Bb2 {[%clk 0:02:59.6]} 3... b6 {[%clk 0:02:57.5]} 4. f4
{[%clk 0:02:58.6]} 4... Bb7 {[%clk 0:02:57.9]} 5. Nc3 {[%clk 0:02:58.3]} 5...
Nc6 {[%clk 0:02:55.4]} 6. Nf3 {[%clk 0:02:58.4]} 6... Nh6 {[%clk 0:02:54.5]} 7.
Qe2 {[%clk 0:02:57.4]} 7... f5 {[%clk 0:02:54.7]} 8. O-O-O {[%clk 0:02:54.1]}
8... Be7 {[%clk 0:02:53.1]} 9. d3 {[%clk 0:02:45.2]} 9... Bf6 {[%clk 0:02:43.3]}
10. g3 {[%clk 0:02:44.4]} 10... Nd4 {[%clk 0:02:41.3]} 11. Nxd4 {[%clk
0:02:44.5]} 11... Bxd4 {[%clk 0:02:42.2]} 12. Bg2 {[%clk 0:02:44.6]} 12... O-O
{[%clk 0:02:38.3]} 13. Kb1 {[%clk 0:02:41.8]} 13... Ng4 {[%clk 0:02:33.5]} 14.
Nb5 {[%clk 0:02:31.8]} 14... Bxb2 {[%clk 0:02:03.8]} 15. Kxb2 {[%clk 0:02:31.8]}
15... Bc6 {[%clk 0:02:03.2]} 16. Nc3 {[%clk 0:02:22.3]} 16... b5 {[%clk
0:02:02.1]} 17. h3 {[%clk 0:02:17]} 17... Nf6 {[%clk 0:01:33.4]} 18. exf5 {[%clk
0:01:45.5]} 18... Bxg2 {[%clk 0:01:22.6]} 19. Qxg2 {[%clk 0:01:46.4]} 19... b4
{[%clk 0:01:23]} 20. Ne4 {[%clk 0:01:40.1]} 20... exf5 {[%clk 0:00:44.6]} 21.
Nd6 {[%clk 0:01:25.2]} 21... a5 {[%clk 0:00:33.2]} 22. g4 {[%clk 0:00:48.5]}
22... a4 {[%clk 0:00:29.7]} 23. g5 {[%clk 0:00:48.9]} 23... axb3 {[%clk
0:00:18.9]} 24. cxb3 {[%clk 0:00:49.8]} 24... Nh5 {[%clk 0:00:17.7]} 25. Rhf1
{[%clk 0:00:20.9]} 25... Qb6 {[%clk 0:00:03.7]} 26. Qd5+ {[%clk 0:00:19.5]}
26... Kh8 {[%clk 0:00:04]} 27. Nf7+ {[%clk 0:00:19.8]} 27... Kg8 {[%clk
0:00:03.4]} 28. Nh6+ {[%clk 0:00:19.7]} 28... Kh8 {[%clk 0:00:04]} 29. Qg8+
{[%clk 0:00:20.1]} 1-0

[Event "*** SCC Grand Prix: Titled Tuesday Blitz"]
[Site "Chess.com"]
[Date "2020.08.11"]
[Round "3"]
[White "FMalexhdez"]
[Black "smshk35"]
[Result "0-1"]
[WhiteElo "2192"]
[BlackElo "2494"]
[TimeControl "180+1"]
[EndTime "10:29:09 PDT"]
[Termination "smshk35 won on time"]

1. e4 {[%clk 0:02:48.5]} 1... c5 {[%clk 0:02:58.6]} 2. Nf3 {[%clk 0:02:48.6]}
2... e6 {[%clk 0:02:57.9]} 3. d4 {[%clk 0:02:49.1]} 3... cxd4 {[%clk 0:02:58.8]}
4. Nxd4 {[%clk 0:02:49.3]} 4... a6 {[%clk 0:02:58.6]} 5. c4 {[%clk 0:02:47.1]}
5... Nf6 {[%clk 0:02:58.3]} 6. Nc3 {[%clk 0:02:47.2]} 6... Bb4 {[%clk
0:02:58.7]} 7. Bd3 {[%clk 0:02:38.4]} 7... Nc6 {[%clk 0:02:58.6]} 8. Nc2 {[%clk
0:02:37.9]} 8... Bxc3+ {[%clk 0:02:57.1]} 9. bxc3 {[%clk 0:02:38.2]} 9... O-O
{[%clk 0:02:55.4]} 10. O-O {[%clk 0:02:33.9]} 10... d6 {[%clk 0:02:53.8]} 11.
Bg5 {[%clk 0:02:29.5]} 11... h6 {[%clk 0:02:53.4]} 12. Bh4 {[%clk 0:02:29.5]}
12... e5 {[%clk 0:02:51.5]} 13. Ne3 {[%clk 0:02:27.6]} 13... Be6 {[%clk
0:02:45.8]} 14. Nd5 {[%clk 0:02:24.6]} 14... g5 {[%clk 0:02:45]} 15. Bg3 {[%clk
0:02:13.3]} 15... Bxd5 {[%clk 0:02:37.7]} 16. exd5 {[%clk 0:02:11.7]} 16... Nb8
{[%clk 0:02:35.4]} 17. Qf3 {[%clk 0:02:05.5]} 17... Nbd7 {[%clk 0:02:27.8]} 18.
h4 {[%clk 0:01:59.4]} 18... Nc5 {[%clk 0:02:16.7]} 19. hxg5 {[%clk 0:01:58.6]}
19... hxg5 {[%clk 0:02:15.2]} 20. Bf5 {[%clk 0:01:51.4]} 20... Kg7 {[%clk
0:02:08.7]} 21. Qe3 {[%clk 0:01:47.5]} 21... Nh5 {[%clk 0:02:05.9]} 22. Bxe5+
{[%clk 0:01:44.7]} 22... dxe5 {[%clk 0:02:04.7]} 23. Qxc5 {[%clk 0:01:44.6]}
23... Qf6 {[%clk 0:02:04.6]} 24. Bg4 {[%clk 0:01:24.8]} 24... Nf4 {[%clk
0:02:03.2]} 25. g3 {[%clk 0:01:23.3]} 25... Rh8 {[%clk 0:01:57.4]} 26. Qe3
{[%clk 0:00:59.4]} 26... Qh6 {[%clk 0:01:37.7]} 27. Qxe5+ {[%clk 0:00:57.5]}
27... Kg8 {[%clk 0:01:37.5]} 28. Qxh8+ {[%clk 0:00:43.9]} 28... Kxh8 {[%clk
0:01:37.4]} 29. gxf4 {[%clk 0:00:44.5]} 29... Qh4 {[%clk 0:01:30.1]} 30. Bf3
{[%clk 0:00:42]} 30... Kg7 {[%clk 0:01:23.3]} 31. Kg2 {[%clk 0:00:38.9]} 31...
g4 {[%clk 0:01:22.7]} 32. Be4 {[%clk 0:00:37.2]} 32... Qh3+ {[%clk 0:01:21.3]}
33. Kg1 {[%clk 0:00:36]} 33... Rh8 {[%clk 0:01:21.4]} 34. Rfe1 {[%clk
0:00:33.2]} 34... g3 {[%clk 0:01:14.9]} 35. Bg2 {[%clk 0:00:29.5]} 35... Qh2+
{[%clk 0:01:05.9]} 36. Kf1 {[%clk 0:00:29.3]} 36... gxf2 {[%clk 0:01:05.1]} 37.
Kxf2 {[%clk 0:00:23.9]} 37... Qxf4+ {[%clk 0:01:05.2]} 38. Kg1 {[%clk
0:00:22.2]} 38... Qh2+ {[%clk 0:01:00.9]} 39. Kf2 {[%clk 0:00:21]} 39... Rh6
{[%clk 0:00:58.7]} 40. Re3 {[%clk 0:00:19.4]} 40... Rg6 {[%clk 0:00:49.7]} 41.
Rg1 {[%clk 0:00:15.5]} 41... Rf6+ {[%clk 0:00:49.5]} 42. Rf3 {[%clk 0:00:14.9]}
42... Rxf3+ {[%clk 0:00:49.2]} 0-1

[Event "*** SCC Grand Prix: Titled Tuesday Blitz"]
[Site "Chess.com"]
[Date "2020.08.11"]
[Round "3"]
[White "Sultanasharminshirin"]
[Black "crossingthestreet"]
[Result "0-1"]
[WhiteElo "2024"]
[BlackElo "2403"]
[TimeControl "180+1"]
[EndTime "10:29:09 PDT"]
[Termination "crossingthestreet won on time"]

1. d4 {[%clk 0:03:00.9]} 1... Nf6 {[%clk 0:02:58.2]} 2. c4 {[%clk 0:02:59.9]}
2... e6 {[%clk 0:02:58]} 3. Nc3 {[%clk 0:02:58.6]} 3... Bb4 {[%clk 0:02:57.9]}
4. Nf3 {[%clk 0:02:57.7]} 4... d5 {[%clk 0:02:57.6]} 5. Bg5 {[%clk 0:02:56]}
5... h6 {[%clk 0:02:57.2]} 6. Bh4 {[%clk 0:02:50.1]} 6... dxc4 {[%clk 0:02:57]}
7. e3 {[%clk 0:02:48.3]} 7... b5 {[%clk 0:02:57.2]} 8. a4 {[%clk 0:02:35.5]}
8... c6 {[%clk 0:02:55.7]} 9. Nd2 {[%clk 0:02:25.4]} 9... Bxc3 {[%clk
0:02:39.2]} 10. bxc3 {[%clk 0:02:24.8]} 10... Nbd7 {[%clk 0:02:39.3]} 11. axb5
{[%clk 0:02:18.5]} 11... cxb5 {[%clk 0:02:39]} 12. Qf3 {[%clk 0:02:17.4]} 12...
Nb6 {[%clk 0:02:17.8]} 13. Bxf6 {[%clk 0:01:27.9]} 13... gxf6 {[%clk 0:02:18.7]}
14. e4 {[%clk 0:01:21.9]} 14... Bb7 {[%clk 0:02:12.9]} 15. Qf4 {[%clk
0:01:11.9]} 15... a6 {[%clk 0:02:03.3]} 16. Be2 {[%clk 0:01:10.1]} 16... Nd7
{[%clk 0:01:36]} 17. O-O {[%clk 0:01:07.3]} 17... Rc8 {[%clk 0:01:35.9]} 18. Bh5
{[%clk 0:01:01]} 18... Qc7 {[%clk 0:01:32.3]} 19. Qg4 {[%clk 0:00:58.6]} 19...
Ke7 {[%clk 0:01:31]} 20. f4 {[%clk 0:00:27.7]} 20... Rcg8 {[%clk 0:01:10]} 21.
Qh4 {[%clk 0:00:27.3]} 21... Kf8 {[%clk 0:01:10.2]} 22. Rf2 {[%clk 0:00:22.5]}
22... a5 {[%clk 0:00:55]} 23. f5 {[%clk 0:00:21.5]} 23... e5 {[%clk 0:00:54.2]}
24. d5 {[%clk 0:00:13.8]} 24... Qb6 {[%clk 0:00:47.6]} 25. Be2 {[%clk
0:00:12.3]} 25... Nc5 {[%clk 0:00:47.2]} 26. Kh1 {[%clk 0:00:10.9]} 26... Rg5
{[%clk 0:00:38.4]} 27. Nf3 {[%clk 0:00:07.5]} 27... Rg7 {[%clk 0:00:36.6]} 28.
Nd2 {[%clk 0:00:04.2]} 28... Ba6 {[%clk 0:00:35.6]} 29. Rb1 {[%clk 0:00:02.2]}
29... Qd6 {[%clk 0:00:35.5]} 0-1

[Event "*** SCC Grand Prix: Titled Tuesday Blitz"]
[Site "Chess.com"]
[Date "2020.08.11"]
[Round "3"]
[White "Batsai"]
[Black "DonBroca"]
[Result "1-0"]
[WhiteElo "2332"]
[BlackElo "2114"]
[TimeControl "180+1"]
[EndTime "10:29:09 PDT"]
[Termination "Batsai won on time"]

1. Nf3 {[%clk 0:03:00.7]} 1... Nf6 {[%clk 0:02:57.4]} 2. d4 {[%clk 0:03:00.4]}
2... g6 {[%clk 0:02:57.2]} 3. c4 {[%clk 0:03:00.8]} 3... Bg7 {[%clk 0:02:57.1]}
4. Nc3 {[%clk 0:03:01.4]} 4... d6 {[%clk 0:02:57.3]} 5. e4 {[%clk 0:03:01.8]}
5... O-O {[%clk 0:02:57.4]} 6. Be2 {[%clk 0:03:02.1]} 6... Nbd7 {[%clk
0:02:57.6]} 7. d5 {[%clk 0:02:56.9]} 7... e5 {[%clk 0:02:56.8]} 8. Bg5 {[%clk
0:02:55.9]} 8... h6 {[%clk 0:02:54.3]} 9. Be3 {[%clk 0:02:55.8]} 9... Nh7 {[%clk
0:02:46.1]} 10. Nd2 {[%clk 0:02:55.6]} 10... f5 {[%clk 0:02:44.8]} 11. f3 {[%clk
0:02:55.7]} 11... Ndf6 {[%clk 0:01:58.9]} 12. O-O {[%clk 0:02:51.7]} 12... f4
{[%clk 0:01:57.8]} 13. Bf2 {[%clk 0:02:50.5]} 13... g5 {[%clk 0:01:51.6]} 14. c5
{[%clk 0:02:48.6]} 14... a6 {[%clk 0:01:47.7]} 15. Rc1 {[%clk 0:02:46.7]} 15...
Kh8 {[%clk 0:01:32.4]} 16. cxd6 {[%clk 0:02:44.7]} 16... cxd6 {[%clk 0:01:31]}
17. Nc4 {[%clk 0:02:43.1]} 17... b5 {[%clk 0:01:20.5]} 18. Nb6 {[%clk
0:02:36.7]} 18... Rb8 {[%clk 0:01:18.9]} 19. Nxc8 {[%clk 0:02:36.3]} 19... Rxc8
{[%clk 0:01:18.3]} 20. Qb3 {[%clk 0:02:33.4]} 20... Qd7 {[%clk 0:01:06.2]} 21.
a4 {[%clk 0:02:32.2]} 21... g4 {[%clk 0:01:04.2]} 22. axb5 {[%clk 0:02:29.3]}
22... Rb8 {[%clk 0:00:52.4]} 23. b6 {[%clk 0:02:24.5]} 23... Nh5 {[%clk
0:00:44.7]} 24. fxg4 {[%clk 0:02:16.9]} 24... f3 {[%clk 0:00:39.6]} 25. gxh5
{[%clk 0:02:04.5]} 25... Ng5 {[%clk 0:00:31.8]} 26. Bh4 {[%clk 0:01:48.9]} 26...
Qg4 {[%clk 0:00:22.5]} 27. Rf2 {[%clk 0:01:24.8]} 27... fxe2 {[%clk 0:00:18.7]}
28. Rxf8+ {[%clk 0:01:10.9]} 28... Bxf8 {[%clk 0:00:18.1]} 29. Bxg5 {[%clk
0:01:11.8]} 29... Qxg5 {[%clk 0:00:17.4]} 30. Nxe2 {[%clk 0:01:11.5]} 30... Be7
{[%clk 0:00:15.5]} 31. b7 {[%clk 0:01:07.6]} 31... Bd8 {[%clk 0:00:15.4]} 32.
Qf3 {[%clk 0:01:02.7]} 32... Rxb7 {[%clk 0:00:12.3]} 33. Qf8+ {[%clk 0:01:01.9]}
33... Qg8 {[%clk 0:00:12.4]} 34. Qxd6 {[%clk 0:00:57.4]} 34... Rg7 {[%clk
0:00:11.8]} 35. Qxh6+ {[%clk 0:00:51.9]} 35... Rh7 {[%clk 0:00:11.5]} 36. Qd6
{[%clk 0:00:50.7]} 36... Bg5 {[%clk 0:00:08.2]} 37. Qxe5+ {[%clk 0:00:49.4]}
37... Rg7 {[%clk 0:00:06.6]} 38. Rc7 {[%clk 0:00:46.8]} 38... Be3+ {[%clk
0:00:05.2]} 39. Kh1 {[%clk 0:00:46.7]} 1-0

[Event "*** SCC Grand Prix: Titled Tuesday Blitz"]
[Site "Chess.com"]
[Date "2020.08.11"]
[Round "3"]
[White "enriquebutti"]
[Black "pirulillo"]
[Result "1/2-1/2"]
[WhiteElo "1811"]
[BlackElo "2231"]
[TimeControl "180+1"]
[EndTime "10:29:10 PDT"]
[Termination "Game drawn by repetition"]

1. d4 {[%clk 0:02:59.8]} 1... Nf6 {[%clk 0:02:58.3]} 2. Nf3 {[%clk 0:02:57.7]}
2... g6 {[%clk 0:02:59.2]} 3. c4 {[%clk 0:02:57.1]} 3... Bg7 {[%clk 0:02:58.6]}
4. Nc3 {[%clk 0:02:56.5]} 4... O-O {[%clk 0:02:59.2]} 5. Bg5 {[%clk 0:02:55.8]}
5... d6 {[%clk 0:03:00.1]} 6. e3 {[%clk 0:02:55.5]} 6... c5 {[%clk 0:03:00.6]}
7. Be2 {[%clk 0:02:54.7]} 7... cxd4 {[%clk 0:03:01]} 8. Nxd4 {[%clk 0:02:53.6]}
8... d5 {[%clk 0:03:01.9]} 9. Bxf6 {[%clk 0:02:52.6]} 9... Bxf6 {[%clk 0:02:59]}
10. cxd5 {[%clk 0:02:52.1]} 10... Bg7 {[%clk 0:02:59.9]} 11. O-O {[%clk
0:02:51.1]} 11... Nd7 {[%clk 0:02:56.5]} 12. Qd2 {[%clk 0:02:49.9]} 12... Nf6
{[%clk 0:02:55.7]} 13. e4 {[%clk 0:02:49]} 13... Qb6 {[%clk 0:02:52.5]} 14. Rfd1
{[%clk 0:02:47.6]} 14... Rd8 {[%clk 0:02:48.9]} 15. h3 {[%clk 0:02:43.9]} 15...
e6 {[%clk 0:02:47.8]} 16. Bf3 {[%clk 0:02:42.9]} 16... exd5 {[%clk 0:02:35]} 17.
exd5 {[%clk 0:02:40.8]} 17... a6 {[%clk 0:02:27.9]} 18. Rac1 {[%clk 0:02:38.1]}
18... Bd7 {[%clk 0:02:27.9]} 19. Nb3 {[%clk 0:02:22.2]} 19... Be8 {[%clk
0:02:20.8]} 20. d6 {[%clk 0:02:19.5]} 20... Bf8 {[%clk 0:02:17.7]} 21. Qf4
{[%clk 0:02:18.6]} 21... Bxd6 {[%clk 0:02:09.3]} 22. Qh6 {[%clk 0:02:16.7]}
22... Bf8 {[%clk 0:02:06.4]} 23. Qf4 {[%clk 0:02:15.7]} 23... Bg7 {[%clk
0:02:04.2]} 24. Na4 {[%clk 0:02:13]} 24... Qa7 {[%clk 0:01:59.3]} 25. Nac5
{[%clk 0:02:11.7]} 25... Rxd1+ {[%clk 0:01:44.1]} 26. Rxd1 {[%clk 0:02:06.3]}
26... Rb8 {[%clk 0:01:42.6]} 27. Qc7 {[%clk 0:02:00]} 27... a5 {[%clk
0:01:37.4]} 28. Nxb7 {[%clk 0:01:55.8]} 28... a4 {[%clk 0:01:35.9]} 29. N3c5
{[%clk 0:01:54.9]} 29... Bf8 {[%clk 0:01:21]} 30. Rd8 {[%clk 0:01:36.4]} 30...
Rxd8 {[%clk 0:01:17.6]} 31. Qxd8 {[%clk 0:01:35.9]} 31... Bxc5 {[%clk
0:01:15.7]} 32. Nxc5 {[%clk 0:01:34.9]} 32... Qxc5 {[%clk 0:01:14.2]} 33. Qxf6
{[%clk 0:01:34.1]} 33... a3 {[%clk 0:01:02.1]} 34. bxa3 {[%clk 0:01:33.1]} 34...
Qxa3 {[%clk 0:01:00.5]} 35. Bd5 {[%clk 0:01:33.1]} 35... Qc1+ {[%clk 0:00:53.7]}
36. Kh2 {[%clk 0:01:31.7]} 36... Qc7+ {[%clk 0:00:53.4]} 37. f4 {[%clk
0:01:30.6]} 37... h5 {[%clk 0:00:50]} 38. Qe5 {[%clk 0:01:29.1]} 38... Qd8
{[%clk 0:00:46.7]} 39. f5 {[%clk 0:01:28.1]} 39... Kh7 {[%clk 0:00:42.3]} 40.
fxg6+ {[%clk 0:01:27]} 40... fxg6 {[%clk 0:00:43.2]} 41. Qe6 {[%clk 0:01:26.4]}
41... Qc7+ {[%clk 0:00:36]} 42. g3 {[%clk 0:01:23.9]} 42... Qc2+ {[%clk
0:00:34.4]} 43. Bg2 {[%clk 0:01:23.1]} 43... Ba4 {[%clk 0:00:30.7]} 44. Qe7+
{[%clk 0:01:21.7]} 44... Kh6 {[%clk 0:00:30.4]} 45. h4 {[%clk 0:01:20.7]} 45...
Bc6 {[%clk 0:00:26.4]} 46. Qg5+ {[%clk 0:01:19.5]} 46... Kg7 {[%clk 0:00:26]}
47. Qe7+ {[%clk 0:01:19]} 47... Kh6 {[%clk 0:00:22.6]} 48. Qg5+ {[%clk
0:01:17.8]} 48... Kg7 {[%clk 0:00:22.5]} 49. Qe7+ {[%clk 0:01:17.1]} 49... Kh6
{[%clk 0:00:20.4]} 1/2-1/2

[Event "*** SCC Grand Prix: Titled Tuesday Blitz"]
[Site "Chess.com"]
[Date "2020.08.11"]
[Round "3"]
[White "TranJMinh"]
[Black "olksuna"]
[Result "1-0"]
[WhiteElo "2838"]
[BlackElo "2633"]
[TimeControl "180+1"]
[EndTime "10:29:13 PDT"]
[Termination "TranJMinh won by resignation"]

1. d4 {[%clk 0:03:00.9]} 1... Nf6 {[%clk 0:02:59.9]} 2. c4 {[%clk 0:03:01]} 2...
e6 {[%clk 0:03:00]} 3. Nf3 {[%clk 0:02:59.5]} 3... d5 {[%clk 0:03:00]} 4. Nc3
{[%clk 0:02:59.5]} 4... c5 {[%clk 0:03:00.6]} 5. cxd5 {[%clk 0:02:59.1]} 5...
Nxd5 {[%clk 0:03:01.5]} 6. e4 {[%clk 0:02:58.7]} 6... Nxc3 {[%clk 0:03:02.1]} 7.
bxc3 {[%clk 0:02:59.5]} 7... cxd4 {[%clk 0:03:03]} 8. cxd4 {[%clk 0:03:00.4]}
8... Bb4+ {[%clk 0:03:03.4]} 9. Bd2 {[%clk 0:03:00.7]} 9... Bxd2+ {[%clk
0:03:04]} 10. Qxd2 {[%clk 0:03:01.6]} 10... O-O {[%clk 0:03:04.4]} 11. Bb5
{[%clk 0:02:54.2]} 11... b6 {[%clk 0:03:00.8]} 12. O-O {[%clk 0:02:53.2]} 12...
Bb7 {[%clk 0:03:01.2]} 13. Rfe1 {[%clk 0:02:49.2]} 13... Nd7 {[%clk 0:03:00.9]}
14. Rad1 {[%clk 0:02:39.8]} 14... Nf6 {[%clk 0:02:57.1]} 15. Qf4 {[%clk
0:02:32.7]} 15... a6 {[%clk 0:02:44.7]} 16. Bd3 {[%clk 0:02:32.1]} 16... h6
{[%clk 0:02:40.8]} 17. d5 {[%clk 0:02:30]} 17... exd5 {[%clk 0:02:35.9]} 18. e5
{[%clk 0:02:29.9]} 18... Nd7 {[%clk 0:02:34.5]} 19. Qf5 {[%clk 0:02:24.1]} 19...
g6 {[%clk 0:02:32.9]} 20. Qh3 {[%clk 0:02:24.1]} 20... Kg7 {[%clk 0:02:18.4]}
21. e6 {[%clk 0:02:24.1]} 21... fxe6 {[%clk 0:02:18.3]} 22. Nd4 {[%clk
0:02:10.2]} 22... Nc5 {[%clk 0:02:10.2]} 23. Rxe6 {[%clk 0:01:59.5]} 23... Rf6
{[%clk 0:02:00.5]} 24. Rde1 {[%clk 0:01:35.4]} 24... Qf8 {[%clk 0:00:44.2]} 25.
Re7+ {[%clk 0:00:41.4]} 25... Rf7 {[%clk 0:00:40.5]} 26. Ne6+ {[%clk 0:00:41.5]}
26... Nxe6 {[%clk 0:00:37.5]} 27. R7xe6 {[%clk 0:00:39.1]} 27... Rf6 {[%clk
0:00:20]} 28. Re7+ {[%clk 0:00:39.3]} 28... Kg8 {[%clk 0:00:12.4]} 29. Rxb7
{[%clk 0:00:37.4]} 29... Re8 {[%clk 0:00:11.9]} 30. Rf1 {[%clk 0:00:22.2]} 30...
h5 {[%clk 0:00:07.5]} 31. Qd7 {[%clk 0:00:20.4]} 1-0

[Event "*** SCC Grand Prix: Titled Tuesday Blitz"]
[Site "Chess.com"]
[Date "2020.08.11"]
[Round "3"]
[White "elcandado"]
[Black "LuisFSiles"]
[Result "1-0"]
[WhiteElo "2547"]
[BlackElo "2317"]
[TimeControl "180+1"]
[EndTime "10:29:13 PDT"]
[Termination "elcandado won on time"]

1. d4 {[%clk 0:03:00.9]} 1... Nf6 {[%clk 0:02:58.8]} 2. Bf4 {[%clk 0:03:00.4]}
2... g6 {[%clk 0:02:57.3]} 3. Nc3 {[%clk 0:03:00]} 3... d5 {[%clk 0:02:55.9]} 4.
e3 {[%clk 0:02:59.7]} 4... Bg7 {[%clk 0:02:54.7]} 5. Nf3 {[%clk 0:02:59.2]} 5...
O-O {[%clk 0:02:53.6]} 6. h3 {[%clk 0:02:59.1]} 6... c5 {[%clk 0:02:41.3]} 7.
Be2 {[%clk 0:02:57.2]} 7... Nc6 {[%clk 0:02:39.4]} 8. O-O {[%clk 0:02:56.6]}
8... Ne4 {[%clk 0:02:30.7]} 9. Nb5 {[%clk 0:02:23.3]} 9... a6 {[%clk 0:02:00.1]}
10. Na3 {[%clk 0:02:05.5]} 10... b5 {[%clk 0:01:45.7]} 11. c3 {[%clk 0:02:04.7]}
11... Bb7 {[%clk 0:01:16.7]} 12. Nc2 {[%clk 0:02:01.4]} 12... Re8 {[%clk
0:01:10.3]} 13. Bh2 {[%clk 0:01:59.2]} 13... e5 {[%clk 0:01:06.1]} 14. dxe5
{[%clk 0:01:55.7]} 14... Nxe5 {[%clk 0:01:04.6]} 15. Nxe5 {[%clk 0:01:54.2]}
15... Bxe5 {[%clk 0:01:05.5]} 16. Bxe5 {[%clk 0:01:54]} 16... Rxe5 {[%clk
0:01:06.4]} 17. Ne1 {[%clk 0:01:53.9]} 17... Re8 {[%clk 0:00:59.4]} 18. Nf3
{[%clk 0:01:48.2]} 18... Ng5 {[%clk 0:00:54.6]} 19. Nxg5 {[%clk 0:01:46]} 19...
Qxg5 {[%clk 0:00:54.3]} 20. Bf3 {[%clk 0:01:45.7]} 20... Rad8 {[%clk 0:00:50.8]}
21. a4 {[%clk 0:01:40.6]} 21... Bc8 {[%clk 0:00:45.5]} 22. Kh1 {[%clk 0:01:33]}
22... Qh4 {[%clk 0:00:40.1]} 23. Kh2 {[%clk 0:01:28]} 23... g5 {[%clk
0:00:33.8]} 24. axb5 {[%clk 0:01:21.3]} 24... axb5 {[%clk 0:00:30.7]} 25. Ra7
{[%clk 0:01:11.8]} 25... Be6 {[%clk 0:00:26.1]} 26. Bg4 {[%clk 0:01:02.6]} 26...
f5 {[%clk 0:00:23.9]} 27. Bh5 {[%clk 0:00:49.3]} 27... Rf8 {[%clk 0:00:18]} 28.
g3 {[%clk 0:00:48.2]} 28... Qe4 {[%clk 0:00:12.3]} 29. Bf3 {[%clk 0:00:44.6]}
29... Qe5 {[%clk 0:00:12.7]} 30. Bg2 {[%clk 0:00:37.8]} 30... f4 {[%clk
0:00:10.7]} 31. exf4 {[%clk 0:00:33.2]} 31... gxf4 {[%clk 0:00:10.3]} 32. Re1
{[%clk 0:00:33]} 32... fxg3+ {[%clk 0:00:09.2]} 33. fxg3 {[%clk 0:00:32.4]} 1-0

[Event "*** SCC Grand Prix: Titled Tuesday Blitz"]
[Site "Chess.com"]
[Date "2020.08.11"]
[Round "3"]
[White "Zkid"]
[Black "Shubinkirill2003"]
[Result "1-0"]
[WhiteElo "2864"]
[BlackElo "2645"]
[TimeControl "180+1"]
[EndTime "10:29:15 PDT"]
[Termination "Zkid won by resignation"]

1. e4 {[%clk 0:02:59.1]} 1... e6 {[%clk 0:03:00.2]} 2. d4 {[%clk 0:02:58.9]}
2... d5 {[%clk 0:03:00.2]} 3. Nc3 {[%clk 0:02:59.6]} 3... Bb4 {[%clk 0:02:59.5]}
4. Ne2 {[%clk 0:02:57.9]} 4... Nc6 {[%clk 0:02:58.4]} 5. e5 {[%clk 0:02:57.3]}
5... f6 {[%clk 0:02:58.2]} 6. f4 {[%clk 0:02:57.1]} 6... Nh6 {[%clk 0:02:48.6]}
7. a3 {[%clk 0:02:56.9]} 7... Ba5 {[%clk 0:02:47.7]} 8. b4 {[%clk 0:02:47.4]}
8... Bb6 {[%clk 0:02:46.7]} 9. Na4 {[%clk 0:02:35]} 9... fxe5 {[%clk 0:02:28.1]}
10. dxe5 {[%clk 0:02:24.1]} 10... O-O {[%clk 0:02:19.6]} 11. Nxb6 {[%clk
0:02:13.9]} 11... axb6 {[%clk 0:02:20.5]} 12. Bb2 {[%clk 0:02:13.8]} 12... Bd7
{[%clk 0:02:06.2]} 13. g3 {[%clk 0:02:03.1]} 13... Nf5 {[%clk 0:02:01.7]} 14.
Qd2 {[%clk 0:01:55.6]} 14... Be8 {[%clk 0:01:57.1]} 15. Bg2 {[%clk 0:01:48.6]}
15... Bg6 {[%clk 0:01:45]} 16. O-O {[%clk 0:01:46.1]} 16... h5 {[%clk
0:01:37.7]} 17. Rac1 {[%clk 0:01:44.2]} 17... Qe7 {[%clk 0:01:34]} 18. c4 {[%clk
0:01:25.7]} 18... dxc4 {[%clk 0:01:32]} 19. Rxc4 {[%clk 0:01:26.6]} 19... Rad8
{[%clk 0:01:24.8]} 20. Qc1 {[%clk 0:01:26.4]} 20... b5 {[%clk 0:01:06.6]} 21.
Rc5 {[%clk 0:01:24.4]} 21... h4 {[%clk 0:00:47]} 22. g4 {[%clk 0:01:21.6]} 22...
Nfd4 {[%clk 0:00:44.2]} 23. Nxd4 {[%clk 0:01:20.9]} 23... Nxd4 {[%clk
0:00:45.1]} 24. Bxd4 {[%clk 0:01:21]} 24... Rxd4 {[%clk 0:00:46]} 25. Rxc7
{[%clk 0:01:20.7]} 25... Qd8 {[%clk 0:00:45.4]} 26. Rxb7 {[%clk 0:01:12.8]}
26... Rd2 {[%clk 0:00:26.6]} 27. Qc7 {[%clk 0:00:36.4]} 27... Rxg2+ {[%clk
0:00:24.5]} 28. Kxg2 {[%clk 0:00:36.7]} 28... Be4+ {[%clk 0:00:23.9]} 29. Rf3
{[%clk 0:00:20.6]} 29... Qxc7 {[%clk 0:00:08.5]} 30. Rxc7 {[%clk 0:00:20.1]}
30... Rxf4 {[%clk 0:00:07.2]} 31. Rc3 {[%clk 0:00:20.3]} 31... Kf7 {[%clk
0:00:04.8]} 32. Kf2 {[%clk 0:00:20]} 32... Bxf3 {[%clk 0:00:04.1]} 33. Rxf3
{[%clk 0:00:19.9]} 33... g5 {[%clk 0:00:03.8]} 34. Rxf4+ {[%clk 0:00:19.8]}
34... gxf4 {[%clk 0:00:04.2]} 35. Kf3 {[%clk 0:00:20.7]} 1-0